Cogmind - Beta 17 @@@ ROGUE MODE // 2026.06.29 @ 18:08:35 Player: Pitt Result: Destroyed by Y-45 Defender with Beam Rifle Performance ------------- Evolutions (1) 500 Regions Visited (4) 800 Robots Destroyed (14) 70 Value Destroyed (362) 362 Prototype IDs (1) 20 Alien Tech Used (0) 0 Bonus (200) 200 TOTAL SCORE: 1952 Bonus ------- Entered Garrisons 200 Cogmind --------- Core Integrity 0/400 Matter 293/300 Energy 100/100 System Corruption 9% Temperature Cool (9) Movement Core (100) Ox1 Location -9/Garrison Parts ------- > --- POWER (1) -------- (None) > --- PROPULSION (4) --- (None) > --- UTILITY (2) ------ Small Storage Unit Machine Analyzer > --- WEAPON (2) ------- (None) > --- INVENTORY (8) ---- Improved Flight Unit Improved Flight Unit Weight Redist. System Improved Terrain Scanner Seismic Detector ECM Suite Recalibrator Peak State ------------ > --- POWER ------------ Ion Engine > --- PROPULSION ------- VTOL Module VTOL Module VTOL Module Improved Flight Unit > --- UTILITY ---------- Small Storage Unit Machine Analyzer > --- WEAPON ----------- Assault Rifle Light Assault Rifle > --- INVENTORY -------- Ion Engine Improved Flight Unit Improved Terrain Scanner Seismic Detector Recalibrator Particle Gun Mining Laser [Rating: 17] Favorites ----------- Power Ion Engine Engine Ion Engine Propulsion Wheel Treads Light Treads Leg Aluminum Leg Wheel Wheel Flight Unit VTOL Module Utility Small Storage Unit Device Seismic Detector Storage Small Storage Unit Processor Machine Analyzer Weapon Assault Rifle Energy Gun Small Laser Ballistic Gun Assault Rifle Special Weapon Mining Laser Build | -11 -10 -9 -9 -9 ------- Run | Yrd Mat Mat Sto Gar Slots Evolved 2 | . . 2 . . Power . | . . . . . Propulsion 2 | . . 2 . . Utility . | . . . . . Weapon . | . . . . . Parts Attached 25 | 8 2 6 3 6 Power 3 | 1 . . . 2 Engine 3 | 1 . . . 2 Core . | . . . . . Reactor . | . . . . . Propulsion 12 | 3 . 5 1 3 Treads 1 | . . . . 1 Leg 2 | . . . . 2 Wheel 3 | 3 . . . . Hover . | . . . . . Flight 6 | . . 5 1 . Utility 4 | 2 1 . 1 . Device 2 | 2 . . . . Storage 1 | . 1 . . . Processor 1 | . . . 1 . Hackware . | . . . . . Protection . | . . . . . Artifact . | . . . . . Weapon 6 | 2 1 1 1 1 Energy Gun 3 | 1 1 . . 1 Energy Cannon . | . . . . . Ballistic Gun 2 | 1 . . 1 . Ballistic Cannon . | . . . . . Launcher . | . . . . . Special Weapon 1 | . . 1 . . Impact Weapon . | . . . . . Slashing Weapon . | . . . . . Piercing Weapon . | . . . . . Special Melee Weapon . | . . . . . Unidentified Prototypes 1 | . . 1 . . Parts Lost 10 | . . . . 10 Power 2 | . . . . 2 Propulsion 4 | . . . . 4 Utility . | . . . . . Weapon 4 | . . . . 4 Highest Loss Streak 5 | . . . . 5 To Critical Strikes . | . . . . . Average Backups 6 | 3 5 6 7 7 Power . | . 1 1 1 . Propulsion 1 | . 1 2 1 1 Utility 2 | . 1 1 2 5 Weapon 1 | 1 2 2 1 . Tool/Special . | . . . . . Unused Backups 6 | . 1 1 . 4 Power . | . . . . . Propulsion 3 | . 1 1 . 1 Utility 3 | . . . . 3 Weapon . | . . . . . Tool/Special . | . . . . . Average Slot Usage (%) 90 | . 100 98 100 73 Engine 12 | . 14 11 11 10 Treads 2 | . . . . 7 Leg 4 | . . . . 13 Wheel 13 | . 28 2 . . Flight 10 | . . 41 44 8 Device 12 | . 23 11 4 . Storage 7 | . 4 11 11 11 Processor 4 | . . . 6 11 Energy Gun 7 | . 14 6 . . Ballistic Gun 13 | . 14 11 20 10 Peak Build Rating 17 | 9 9 16 17 17 Average Rating 10 | 6 8 14 16 10 On Entrance 9 | . 9 9 14 17 Avg Prop Armor Cover (%) 13 | . . . . 13 Naked Turns . | . . . . . Heaviest Build 16 | 10 16 16 14 13 Greatest Support 26 | 26 20 16 17 20 Greatest Overweight (x) 3 | . . . . 3 Average Overweight (x) . | . . . . . Largest Inventory Capacity 8 | 5 8 8 8 8 Average Capacity 6 | 5 5 8 8 8 Most Carried 8 | 5 8 8 8 8 Average Carried 6 | 3 5 6 7 7 Final Capacity 8 | 5 8 8 8 8 Final Carried 8 | 5 8 7 8 7 Class Distribution -------------------- 55% | Mutant 22% | Scavenger-Mutant 21% | Sprinter Dominant Class ---------------- Mutant | -10/Materials Sprinter | -9/Materials Sprinter | -9/Storage Scavenger-Mutant | -9/Garrison Resources | -11 -10 -9 -9 -9 ----------- Run | Yrd Mat Mat Sto Gar Matter Collected 464 | 251 47 53 23 90 Remotely . | . . . . . Salvage Created 475 | 157 95 53 23 147 Parts 35 | 15 4 3 4 9 Haulers Intercepted . | . . . . . Recyclers Shooed . | . . . . . Parts Field Recycled . | . . . . . Retrieved Matter . | . . . . . Parts Self-Destructed . | . . . . . Prevented . | . . . . . Parts Restored . | . . . . . Kills | -11 -10 -9 -9 -9 ------- Run | Yrd Mat Mat Sto Gar Combat Hostiles Destroyed 7 | . 2 1 . 4 Guns 7 | . 2 1 . 4 Classes Destroyed 7 | 2 2 1 1 1 Tunneler 4 | 4 . . . . Recycler 1 | 1 . . . . Mechanic 1 | . . . 1 . Watcher 1 | . 1 . . . Grunt 4 | . 2 . . 2 Sentry 2 | . . 1 . 1 Programmer 1 | . . . . 1 Best Kill Streak 3 | 3 3 1 1 2 Combat Bots Only 2 | . 2 1 . 2 Max Kills in Single Turn 1 | 1 1 1 1 1 Gunslinging . | . . . . . Exploded . | . . . . . Melee . | . . . . . Uniques/NPCs Destroyed . | . . . . . Combat | -11 -10 -9 -9 -9 -------- Run | Yrd Mat Mat Sto Gar Hostile Shots Fired 138 | . 6 9 12 111 Missed 45 | . 3 6 7 29 Hits 93 | . 3 3 5 82 Projectile 93 | . 3 3 5 82 Critical Strikes 3 | . . . . 3 Damage Taken 1346 | . 41 43 65 1197 Core 400 | . . 16 . 384 Absorbed by Shields 8 | . . . . 8 Core Remaining (%) 100 | 100 100 . . . Volleys Fired 75 | 18 10 10 5 32 Largest 2 | 2 2 2 2 2 Hottest 100 | 60 85 100 40 85 Shots Fired 106 | 19 19 15 10 43 Gun 104 | 19 19 13 10 43 Cannon . | . . . . . Launcher . | . . . . . Special 2 | . . 2 . . Kinetic 58 | 1 10 8 10 29 Thermal 48 | 18 9 7 . 14 Explosive . | . . . . . Electromagnetic . | . . . . . Robot Hit Streak 18 | 3 4 6 2 18 Robot Miss Streak 3 | 3 1 2 3 2 Penetration Max . | . . . . . Secondary Targets 1 | . . . . 1 Max Gunslinging Chain 1 | . . . . 1 Shots Hit Robots 66 | 10 14 9 3 30 Core Hits 29 | 5 4 3 3 14 Critical Kills 1 | . 1 . . . Critical Parts Destroyed . | . . . . . Critical Strikes 2 | . 1 1 . . Burn 1 | . . 1 . . Destroy 1 | . 1 . . . Melee Attacks . | . . . . . Impact . | . . . . . Slashing . | . . . . . Piercing . | . . . . . Sneak Attacks . | . . . . . Combat Hostiles . | . . . . . Follow-up Attacks . | . . . . . Damage Inflicted 827 | 116 177 130 32 372 Guns 778 | 116 177 130 32 323 Cannons . | . . . . . Explosions . | . . . . . Melee . | . . . . . Ramming 49 | . . . . 49 Kinetic 382 | 15 84 66 32 185 Thermal 396 | 101 93 64 . 138 Explosive . | . . . . . Electromagnetic . | . . . . . Impact . | . . . . . Slashing . | . . . . . Piercing . | . . . . . Highest Corruption 9 | . 1 . . 9 Average Corruption 4 | . 1 . . 5 Corruption Purged . | . . . . . Corruption Blocked . | . . . . . Effects 3 | . . . . 3 Message Errors 1 | . . . . 1 Matter Fused 2 | . . . . 2 Overload Shots . | . . . . . Overflow Damage . | . . . . . Projectiles . | . . . . . Explosions . | . . . . . Melee . | . . . . . Knockbacks . | . . . . . Impact . | . . . . . Kinetic . | . . . . . Secondary . | . . . . . Self-Inflicted Damage 8 | . . . . 8 Shots . | . . . . . Rammed 12 | . . . . 12 Targets Rammed 23 | . . . . 23 Kicked 11 | . . . . 11 Crushed . | . . . . . Highest Temperature 117 | . 24 117 14 77 Average Temperature 29 | . 13 48 6 20 Received Heat Transfer 339 | . 21 9 21 288 Siege Activations . | . . . . . Martial Activations . | . . . . . Shielding Activations . | . . . . . Robots Disrupted . | . . . . . Combat Hostiles . | . . . . . Robots Corrupted . | . . . . . Combat Hostiles . | . . . . . Parts Fried . | . . . . . Impact Corruptions . | . . . . . Robots Melted . | . . . . . Combat Hostiles . | . . . . . Parts Melted . | . . . . . Heat Transferred 895 | 225 212 222 . 236 Parts Sabotaged . | . . . . . Parts Stolen . | . . . . . Parts Stripped . | . . . . . Power Chain Reactions . | . . . . . Alert | -11 -10 -9 -9 -9 ------- Run | Yrd Mat Mat Sto Gar Maximum Alert Level . | . . . . . Low Security (%) 100 | 100 100 100 100 100 Level 1 . | . . . . . Level 2 . | . . . . . Level 3 . | . . . . . Level 4 . | . . . . . Level 5 . | . . . . . High Security . | . . . . . Max Security . | . . . . . Peak Influence 183 | 5 49 75 183 155 Initial 115 | . . 13 22 115 Average 53 | 2 3 36 51 136 Influence Increases 499 | 25 57 92 215 110 Destroy 0b10 Robot/C 140 | . 40 20 . 80 Destroy 0b10 Robot/NC 35 | 25 5 . 5 . Destroy Leader 22 | . 12 10 . . Successful Hack 15 | . . . 15 . Destroy Structure 2 | . . 2 . . Partial Spotted 60 | . . . 60 . Lose Combat Pursuer 225 | . . 60 135 30 Influence Decreases 374 | 25 24 70 93 162 Entered New Map 115 | . . 20 33 62 Time Decay 159 | 25 24 50 60 . Lost Part 100 | . . . . 100 Squads Dispatched 8 | . . 3 5 . Investigation 8 | . . 3 5 . Extermination . | . . . . . Reinforcement . | . . . . . Assault . | . . . . . Garrison . | . . . . . Intercept . | . . . . . Searches Triggered . | . . . . . Construction Impeded . | . . . . . Haulers Reinforced . | . . . . . Active Scanning Responses . | . . . . . Cargo Convoy Interrupts . | . . . . . Stealth | -11 -10 -9 -9 -9 --------- Run | Yrd Mat Mat Sto Gar Distress Signals 2 | . 1 . 1 . Communications Jammed . | . . . . . Distress Signals . | . . . . . Times Spotted 43 | . 5 8 21 9 Peak Tracking Total 15 | . 3 4 15 7 Tactical Retreats 5 | . . 1 2 2 Traps | -11 -10 -9 -9 -9 ------- Run | Yrd Mat Mat Sto Gar Traps Triggered 8 | . 1 2 1 4 Indirectly . | . . . . . Trap Hack Attempts . | . . . . . Triggered . | . . . . . Disarmed . | . . . . . Reprogrammed . | . . . . . Reused . | . . . . . Traps Extracted . | . . . . . Installed . | . . . . . Triggered . | . . . . . Machines | -11 -10 -9 -9 -9 ---------- Run | Yrd Mat Mat Sto Gar Machines Disabled . | . . . . . Max in Single Turn . | . . . . . Machines Repaired . | . . . . . Machines Dismantled . | . . . . . Machines Sabotaged . | . . . . . Overloaded Fab Kills . | . . . . . Hacking | -11 -10 -9 -9 -9 --------- Run | Yrd Mat Mat Sto Gar Machines Accessed 11 | . . 4 7 . Terminals 10 | . . 4 6 . Fabricators . | . . . . . Repair Stations . | . . . . . Recycling Units . | . . . . . Scanalyzers . | . . . . . Garrison Access 1 | . . . 1 . Total Hacks 31 | . . 10 21 . Successful 8 | . . 2 6 . Failed 23 | . . 8 15 . Catastrophic 7 | . . 3 4 . Database Lockouts . | . . . . . Manual 21 | . . 10 11 . Terminals 30 | . . 10 20 . Fabricators . | . . . . . Repair Stations . | . . . . . Recycling Units . | . . . . . Scanalyzers . | . . . . . Garrison Access 1 | . . . 1 . Terminal Hacks 3 | . . . 3 . Branch Access Points 1 | . . . 1 . Emergency Access Points 1 | . . . 1 . Zone Layout 1 | . . . 1 . Fabricator Hacks . | . . . . . Repair Station Hacks . | . . . . . Recycling Unit Hacks . | . . . . . Scanalyzer . | . . . . . Garrison Access Hacks 1 | . . . 1 . Unlock Access 1 | . . . 1 . Unauthorized Hacks 4 | . . 2 2 . Terminals 4 | . . 2 2 . Track 4 | . . 2 2 . Fabricators . | . . . . . Repair Stations . | . . . . . Recycling Units . | . . . . . Scanalyzers . | . . . . . Garrison Access . | . . . . . Data Cores Recovered . | . . . . . Used . | . . . . . Hacking Detections 10 | . . 4 6 . Full Trace Events 5 | . . 1 4 . Feedback Events . | . . . . . Feedback Blocked . | . . . . . Robot Schematics Acquired . | . . . . . Robots Built . | . . . . . Authchips . | . . . . . Time . | . . . . . Total Robot Build Rating . | . . . . . Part Schematics Acquired . | . . . . . Parts Built . | . . . . . Authchips . | . . . . . Time . | . . . . . Total Part Build Rating . | . . . . . Part Studies Acquired . | . . . . . Parts Repaired . | . . . . . Time . | . . . . . Parts Recycled . | . . . . . Recycled Matter . | . . . . . Retrieved Matter . | . . . . . Retrieved Components . | . . . . . Parts Scanalyzed . | . . . . . Part Schematics Acquired . | . . . . . Parts Damaged . | . . . . . Bothacking | -11 -10 -9 -9 -9 ------------ Run | Yrd Mat Mat Sto Gar Used RIF Installer . | . . . . . Robots Hacked . | . . . . . Non-combat . | . . . . . Combat . | . . . . . Robot Hacks Applied . | . . . . . Relay Couplers Released 4 | . . . . 4 Programmers 4 | . . . . 4 Fabnet Peak Effective % . | . . . . . Robots Rewired . | . . . . . Allies Hacked . | . . . . . Hacks Repelled . | . . . . . Allies | -11 -10 -9 -9 -9 -------- Run | Yrd Mat Mat Sto Gar Total Allies . | . . . . . Largest Group . | . . . . . Highest-Rated Group . | . . . . . Highest-Rated Ally . | . . . . . Total Orders . | . . . . . Ally Attacks . | . . . . . Total Damage . | . . . . . Kills . | . . . . . Allies Corrupted . | . . . . . Allies Melted . | . . . . . Intel | -11 -10 -9 -9 -9 ------- Run | Yrd Mat Mat Sto Gar Active Infowar (turns) 1420 | 75 634 102 125 484 Terrain 522 | 75 447 . . . Seismic 828 | 55 634 102 37 . Machine Analysis 572 | . . . 88 484 Robot Analysis Total . | . . . . . Derelict Logs Recovered . | . . . . . Drone Launches . | . . . . . Drone Recoveries . | . . . . . Exploration | -11 -10 -9 -9 -9 ------------- Run | Yrd Mat Mat Sto Gar Turns Passed 1474 | 127 634 102 125 486 Spaces Moved 933 | 88 190 169 292 194 Core 14 | 4 . . . 10 Treads . | . . . . . Legs 109 | . . . . 109 Wheels 274 | 84 190 . . . Hover . | . . . . . Flight 536 | . . 169 292 75 Fastest Speed 26 | 50 80 26 26 27 Average Speed 55 | 82 80 26 26 88 Slowest Speed 200 | 100 80 26 27 200 Overloaded Moves . | . . . . . Propulsion Burnouts . | . . . . . Robots Hopped 10 | . . 1 8 1 Potential Cave-ins . | . . . . . Cave-ins Triggered . | . . . . . Exploration Rate (%) 25 | 4 28 21 54 21 Regions Visited 4 Branch Regions 1 Pre-discovered Areas . | . . . . . Known Exits Taken 1 | . . . 1 . Unknown Exits Taken 3 | 1 1 1 . . Scrap Searched . | . . . . . Spaces Dug 2 | . . 2 . . Terrain Destroyed 2 | . . 2 . . Melee . | . . . . . Projectile 2 | . . 2 . . AOE . | . . . . . Terrain Rammed . | . . . . . Walls Destroyed . | . . . . . Machines Disabled . | . . . . . Actions | -11 -10 -9 -9 -9 --------- Run | Yrd Mat Mat Sto Gar Total 1755 | 119 652 205 322 457 Wait 648 | . 445 14 21 168 Move 911 | 87 189 166 277 192 Hop 9 | . . 1 7 1 Pick Up 18 | 5 4 4 5 . Fast Attach 12 | 7 1 . . 4 Attach 5 | . . 3 . 2 Detach 1 | . . . . 1 Swap 10 | 1 1 4 3 1 Drop 13 | 1 2 3 4 3 Fire 75 | 18 10 10 5 32 Melee . | . . . . . Ram 12 | . . . . 12 Kick 11 | . . . . 11 Crush . | . . . . . Escape Stasis 30 | . . . . 30 Rewire . | . . . . . Trap . | . . . . . Miscellaneous . | . . . . . Route ------- -11/Scrapyard -10/Materials -9/Materials (discovered 2 exits: [*Min] / *Sto) -9/Storage (discovered 2 exits: Rec / Gar) -9/Garrison History --------- Turn | Location | Event 4 | -11/Scrapyard | Discovered new exit (range 15) 128 | -11/Scrapyard | Entered Materials 300 | -10/Materials | Build established: Mutant 758 | -10/Materials | Discovered new exit (range 4) 762 | -10/Materials | Entered another Materials area 762 | -9/Materials | Evolved 2 slots: Propulsion x2 848 | -9/Materials | Discovered new exit (range 6) 848 | -9/Materials | Discovered new exit (range 12) 864 | -9/Materials | Entered Storage 965 | -9/Storage | Identified exit to Recycling 989 | -9/Storage | Identified exit to Garrison 989 | -9/Storage | Entered Garrison 1039 | -9/Garrison | Triggered checkpoint 1062 | -9/Garrison | Build established: Sprinter 1109 | -9/Garrison | Lost 3 parts (1n2w) 1376 | -9/Garrison | Build established: Scavenger-Mutant 1436 | -9/Garrison | Rescued a captive Derelict 1442 | -9/Garrison | Rescued a captive Derelict 1448 | -9/Garrison | Core integrity fell below 50% 1471 | -9/Garrison | Core integrity fell below 20% 1475 | -9/Garrison | Destroyed by Y-45 Defender with Beam Rifle Last Messages --------------- 01428_ 1>%JJ%F,O<1/VJ:WNH 01469_ Ion Engine destroyed. 01470_ Slammed into G-47 Trooper. 01473_ Slammed into Y-45 Defender. 01473_ Machine Analyzer broken. 01473_ Destabilizing: Short circuit. 01474_ Slammed into G-34 Mercenary. Map ----- +----------------------------------------------------+ | ??????????????? ^ ^"???????????????????? | | ??????????????? "???????????????????? | | ???????????????? "???????????????????? | | ?????????????????? ? "???????????????????? | | ???????????????????# ?# #???????????????????? | | ??????????????# ## ## #############???????? | | ???????????? #???????? | | ???????????? #???????? | | ???????????? ########## #???????? | | ?????????????#######""""###+##????????# #???????? | | ??????????????????????????# #?????????# #???????? | | ??????????????????????###?# #?????????# #???????? | | ??????????????????????# ### #?????????# #???????? | | ??????????????????????# #?????????# "???????? | | ??????????????????????##### #?????????# #???????? | | ??????????????????????????# #?????????# #???????? | | ??????????????????????????# #?????????# ^######### | | ??????????????????????????# #??###????# ^ | | ??????????????????????????# #### ###### | | ??????????????????????????#=* =*+%! ######### | | ??????????????????????????# ######!#######???????# | | ??????????????????????????# #????#=#?????????????# | | ??????????????????????????# #????#%###???????????? | | ????????????????????????###+######!! ### #???????? | | ????????????????????????#Yg + #???????? | | ???????????????????????##@######## ### #???????? | | ???????????????????????#! !#?????# ###???????????? | | ???????????????????????#! !#?????# #?????????????? | | ???????????????????????#!g!#?????# #?????????????? | | ???????????????????????#! !#?????# #?????????????? | | ???????????????????????#####?????# #?????????????? | | ?????????????????????????????????# #?????????????? | | ?????????????????????????????????? ??????????????? | | ?????????????????????????????????? ??????????????? | | ?????????????????????????????????? ??????????????? | | ??????????????????????????????????#??????????????? | | ?????????????????????????????????????????????????? | | ?????????????????????????????????????????????????? | | ?????????????????????????????????????????????????? | | ?????????????????????????????????????????????????? | | ?????????????????????????????????????????????????? | | ?????????????????????????????????????????????????? | | ?????????????????????????????????????????????????? | | ?????????????????????????????????????????????????? | | ?????????????????????????????????????????????????? | | ?????????????????????????????????????????????????? | | ?????????????????????????????????????????????????? | | ?????????????????????????????????????????????????? | | ?????????????????????????????????????????????????? | | ?????????????????????????????????????????????????? | +----------------------------------------------------+ Best States ------------- Heat Dissipation 28 Energy Generation 10 Energy Capacity 250 Matter Stores 274 Matter Capacity 300 Sight Range 16 Terrain Scan Range 16 Terrain Scan Density 10 Evasion (%) 64 Recoil Reduction 1 Item Schematics ----------------- None Robot Schematics ------------------ None Fabricated ------------ Nothing Repaired ---------- Nothing Studied --------- None Alien Tech Used ----------------- None Achievements -------------- None Challenges ------------ None Game ------ Seed TeleporterTerrorBrace Manual? 0 Play Time 00:18:48 Cumulative 261.3 hours Start 2026.06.29 @ 17:50:35 End 2026.06.29 @ 18:08:35 Sessions 1 Manual Loads 0 Difficulty Rogue Special Mode None Game No. 405 Rogue 405 Adventurer 0 Explorer 0 Win Type - Total 0 Types 0/0/0/0/0/0/0/0/0/0 Lore% 50 Gallery% 50 Achievement% 31 Wizard Run 0 Options --------- Layout 0 ASCII 0 Keyboard 0 Movement Mouse Keybinds 0 Fullscreen 1 Font 18/SmallcapsGlow Map View 76x50 Zoom Use 0% Tactical HUD 1 Map Filters NONE Filters NONE Steam 1 RUN: db9ea41c-b284-40a7-acfe-05937eb9b135